[Event "Polish Youth B18 Championship 2023"]
[Site "Jastrzebia Gora"]
[Date "2023.03.14"]
[Round "4.9"]
[White "Syrkiewicz, Michal"]
[Black "Kacprzak, Karol"]
[Result "0-1"]
[ECO "B90"]
[WhiteElo "2000"]
[BlackElo "2221"]
[Annotator "TA"]
[PlyCount "140"]
[EventDate "2023.03.11"]
[EventType "swiss"]
[EventCountry "POL"]
[SourceTitle "playchess.com"]
[Source "ChessBase"]
[SourceQuality "1"]
[TimeControl "40/5400+30:1800+30"]

{[%evp 16,140,30,31,76,89,84,64,64,60,61,0,49,52,67,55,63,54,62,24,14,0,0,0,0,5,10,-26,-20,-20,0,-191,-184,-168,-126,-120,-117,-131,-129,-143,-147,-141,-144,-150,-146,-135,-140,-131,-108,-88,-88,-102,-74,-116,-93,-197,-157,-192,-153,-131,-114,-110,-108,-108,-105,-254,-245,-354,-344,-332,-315,-351,-353,-304,-252,-610,-464,-575,-428,-845,-847,-850,-751,-658,-596,-1469,-1468,-1212,-1331,-1297,-908,-1224,-1224,-1024,-681,-29961,-29960,-29962,-29961,-29960,-2293,-29964,-29968,-29970,-29970,-29966,-29964,-29952,-29947,-29981,-29982,-29982,-29983,-29983,-29984,-29986,-29987,-29987,-29988,-29988,-29989,-29989,-29990,-29990,-29991,-29992,-29993]} 1. e4 {[%emt 0:00:21]} c5 {[%emt 0:00:14]} 2. Nf3 {[%emt 0:00:04]} d6 {[%emt 0:00:05]} 3. d4 {[%emt 0:00:04]} cxd4 {[%emt 0:00:04]} 4. Nxd4 {[%emt 0:00:05]} Nf6 {[%emt 0:00:06]} 5. Nc3 {[%emt 0:00:04]} a6 {[%emt 0:00:06]} 6. Be3 {[%emt 0:00:08]} e6 {[%emt 0:02:27]} 7. Be2 {[%emt 0:01:02]} Be7 {[%emt 0:02:07]} 8. f4 {[%emt 0:02:02][%cal Bf2f4,Bf4f5][%mdl 32]} Qc7 {[%emt 0:02:54]} 9. g4 {[%emt 0:07:40][%cal Bg2g4,Bg4g5][%mdl 32] is the new trend.} b5 {[%emt 0:05:45] B84: Sicilian Scheveningen: 6 Be2 a6, lines without early Be3.} 10. g5 {[%emt 0:05:15]} Nfd7 {[%emt 0:00:06]} 11. f5 {[%emt 0:14:57]} Ne5 {[%emt 0:07:40] White is slightly better.} 12. a3 {[%emt 0:08:56]} Nbc6 {[%emt 0:01:37] [#]} 13. Rf1 $146 {[%emt 0:10:31]} (13. Nxc6 $14 Qxc6 14. Rf1) ({Predecessor:} 13. O-O g6 14. Qd2 Nxd4 15. Bxd4 Bb7 16. fxe6 fxe6 17. Qe3 O-O-O 18. Qh3 Bxg5 19. Bg4 Kb8 20. Bxe6 {½-½ Hoffmann,P (2372)-Botvinnik,M (2337) WUCC op 11th 2010 (9)}) 13... Bd7 {[%emt 0:08:05]} (13... Na5 $1 $11) 14. Nxc6 $14 {[%emt 0:09:08]} Bxc6 15. Qd4 {[%emt 0:03:55]} Qb7 {[%emt 0:17:10]} 16. O-O-O {[%emt 0:08:57]} a5 {[%emt 0:10:46][%cal Ba6a5,Ba5b4][%mdl 32]} 17. f6 {[%emt 0:02:11]} (17. b4 {keeps more tension.} axb4 18. axb4 Ra1+ 19. Kb2) 17... gxf6 {[%emt 0:00:42]} 18. gxf6 {[%emt 0:00:03]} Bf8 {[%emt 0:00:06]} 19. Qb6 {[%emt 0:08:59]} Qxb6 {[%emt 0:08:27]} 20. Bxb6 {[%emt 0:00:06]} b4 {[%emt 0:00:03]} 21. axb4 {[%emt 0:03:19]} axb4 {[%emt 0:00:40]} 22. Nb5 {[%emt 0:00:05]} Rb8 {[%emt 0:10:40]} (22... Bxe4 23. Nxd6+ (23. Nc7+ Kd7 $11) 23... Bxd6 24. Rxd6 $16) (22... Kd7 $5 {[%cal Rc6e4]}) 23. Nc7+ $2 {[%emt 0:00:54]} (23. Nxd6+ $2 Bxd6 24. Rxd6 Rxb6 $19) (23. Rxd6 $1 $11 {and White has nothing to worry.} Bxd6 24. Nxd6+ Kd7 25. Rd1) 23... Kd7 $19 {[%emt 0:00:20]} 24. Ba5 {[%emt 0:00:14]} Bxe4 {[%emt 0:08:26]} 25. Na6 {[%emt 0:01:02][%csl LRb4,LRb8]} Rc8 {[%emt 0:01:39][%cal Bb8c8,Bc8c4,Bc4d4][%mdl 32] Dancing on a razor blade.} (25... Bh6+ $6 26. Kb1 Be3 27. Bxb4 $11) 26. Nxb4 {[%emt 0:03:17]} Nc4 {[%emt 0:01:16]} 27. Bxc4 {[%emt 0:00:49] Bb5+ is the strong threat.} Rxc4 {[%emt 0:00:01]} 28. Nd3 {[%emt 0:00:07]} Bh6+ {[%emt 0:03:54]} 29. Kb1 {[%emt 0:01:33] [#]} Rd4 $1 {[%emt 0:05:03]} 30. Bd2 {[%emt 0:02:02]} Bxd2 {[%emt 0:01:43]} 31. Rxd2 {[%emt 0:00:02]} Bxd3 {[%emt 0:00:43]} 32. Rxd3 {[%emt 0:01:11]} Rxd3 {[%emt 0:00:06]} 33. cxd3 $17 {[%emt 0:00:02][%mdl 4096] Endgame KR-KR} Rg8 {[%emt 0:00:52]} 34. Rf4 {[%emt 0:00:33]} Rg6 {[%emt 0:00:45]} 35. d4 {[%emt 0:00:47]} (35. Kc2 $17 {was called for.}) 35... Rh6 {[%emt 0:00:38]} 36. Rf2 {[%emt 0:01:04]} Rh4 {[%emt 0:00:16]} 37. Rg2 {[%emt 0:00:05]} Rf4 {[%emt 0:01:26]} 38. Rg7 {[%emt 0:00:23]} Rxf6 {[%emt 0:00:02] And now ...Kc6 would win.} (38... Rxd4 $6 39. Rxf7+ Kc6 40. Rxh7 $11) 39. Rxh7 {[%emt 0:00:05][%cal Od4d5]} Kc6 {[%emt 0:01:50]} 40. Kc2 {[%emt 0:00:00] [#] White does not recover from this.} (40. Rh5 $17) 40... Kd5 $1 $19 {[%emt 0:00:00]} 41. Kd3 {[%emt 0:01:16]} (41. Rh4 {keeps fighting.}) 41... Rf3+ {[%emt 0:01:39]} 42. Ke2 {[%emt 0:00:11]} Rf4 {[%emt 0:05:01]} 43. Ke3 {[%emt 0:00:42]} Re4+ {[%emt 0:00:26]} (43... Rxd4 44. Rxf7 e5 45. Rf1 $17) 44. Kf3 {[%emt 0:00:04]} f5 {[%emt 0:00:05]} ({Weaker is} 44... Kxd4 45. Rxf7 d5 46. Ra7 $17) 45. h4 $2 {[%emt 0:02:02]} (45. Ra7) 45... Rxd4 {[%emt 0:01:30]} (45... Kxd4 $2 {loses.} 46. h5 $19) 46. h5 {[%emt 0:00:07]} Rb4 {[%emt 0:04:27]} 47. h6 {[%emt 0:00:10]} (47. Rf7 $142 Rxb2 48. Kg3) 47... Rxb2 {[%emt 0:02:49] Strongly threatening ...Rh2.} 48. Kg3 {[%emt 0:00:08] Inhibits Rh2.} Rb1 {[%emt 0:00:14] White must now prevent ...Rh1.} 49. Kg2 {[%emt 0:00:03] Repels Rh1} Rb4 {[%emt 0:03:14]} 50. Kg3 {[%emt 0:00:03] Prevents Rh4} Rg4+ {[%emt 0:02:23]} 51. Kh3 {[%emt 0:00:12]} Rg1 {[%emt 0:00:53]} 52. Kh4 {[%emt 0:00:09]} f4 {[%emt 0:04:50]} 53. Ra7 {[%emt 0:00:45]} e5 {[%emt 0:00:40][%cal Be6e5,Be5e4][%mdl 32] aiming for ...Rh1+.} 54. h7 {[%emt 0:00:02]} f3 {[%emt 0:01:06]} ({Wrong is} 54... Rh1+ $2 55. Kg4 $19) 55. h8=Q {[%emt 0:00:18] Qa8+ would be deadly.} Rh1+ {[%emt 0:00:04][%mdl 64] Skewer} 56. Kg3 {[%emt 0:00:02]} Rxh8 {[%emt 0:00:07]} 57. Kxf3 {[%emt 0:00:01] KR-KR} Rh3+ {[%emt 0:00:14]} (57... e4+ $142 58. Kf4 Rf8+ 59. Ke3 Rf3+ 60. Kd2 Rh3 61. Ke2 Ke5 62. Kf2 d5 63. Ra5 Rb3 64. Kg2 Kd4 65. Kf1 e3 66. Kg2 Rb2+ 67. Kf3 Rf2+ 68. Kg3 Ke4 69. Kg4 e2 70. Ra8 Rf4+ 71. Kh3 Rf1 72. Kg4 e1=Q 73. Re8+ Kd3 74. Rxe1 Rxe1 75. Kg5 Rf1 76. Kh6 d4 77. Kh5 Ke4 78. Kg6 d3 79. Kh7 d2 80. Kh6 d1=Q 81. Kg5 Qd5+ 82. Kh4 Kf3 83. Kh3 Qh5#) 58. Ke2 {[%emt 0:00:04]} e4 {[%emt 0:00:15] Black mates.} 59. Ra8 {[%emt 0:00:04]} Kd4 {[%emt 0:00:14]} 60. Ra4+ {[%emt 0:00:05]} Ke5 {[%emt 0:00:03]} 61. Ra8 {[%emt 0:00:09]} d5 {[%emt 0:00:27][%cal Bd6d5,Bd5d4,Bd4d3,Bd3d2][%mdl 32]} 62. Rb8 {[%emt 0:00:11]} Rh2+ {[%emt 0:00:07]} 63. Kd1 {[%emt 0:00:04]} d4 {[%emt 0:00:09]} 64. Re8+ {[%emt 0:00:06]} Kf4 {[%emt 0:00:06]} 65. Rf8+ {[%emt 0:00:02]} Ke3 {[%emt 0:00:06]} 66. Rg8 {[%emt 0:00:05]} Rh1+ {[%emt 0:00:32]} 67. Kc2 {[%emt 0:00:02]} d3+ {[%emt 0:00:05]} 68. Kc3 {[%emt 0:00:05]} Rc1+ {[%emt 0:00:02]} 69. Kb2 {[%emt 0:00:02]} d2 {[%emt 0:00:08]} 70. Rg3+ {[%emt 0:00:06]} Kf4 {[%emt 0:00:06] Weighted Error Value: White=0.48/Black=0.09 (flawless)} 0-1

[Event "Polish Youth B18 Championship 2023"]
[Site "Jastrzebia Gora"]
[Date "2023.03.14"]
[Round "4.10"]
[White "Grzesik, Gracjan"]
[Black "Biesiadecki, Adam"]
[Result "1/2-1/2"]
[ECO "A29"]
[WhiteElo "2149"]
[BlackElo "1761"]
[Annotator "TA"]
[PlyCount "65"]
[EventDate "2023.03.11"]
[EventType "swiss"]
[EventCountry "POL"]
[SourceTitle "playchess.com"]
[Source "ChessBase"]
[SourceQuality "1"]
[TimeControl "40/5400+30:1800+30"]

{[%evp 12,65,8,2,22,21,39,-5,0,0,10,7,19,20,19,11,16,3,41,22,30,0,0,0,6,9,16,6,24,15,19,17,37,27,47,21,31,0,0,22,23,18,12,6,49,0,0,0,0,0,0,-10,0,0,11,9]} 1. c4 {[%emt 0:00:42]} e5 {[%emt 0:00:06]} 2. Nc3 {[%emt 0:00:03]} Nf6 {[%emt 0:00:08]} 3. Nf3 {[%emt 0:00:05]} Nc6 {[%emt 0:00:26][%cal Bb8c6,Bc6e7,Be7f5][%mdl 32]} 4. g3 {[%emt 0:00:03]} Bb4 {[%emt 0:01:07]} 5. Bg2 {[%emt 0:00:07]} O-O {[%emt 0:00:19]} 6. O-O {[%emt 0:00:21]} d6 {[%emt 0:01:37] has lost popularity (6...e4).} 7. Nd5 {[%emt 0:14:48]} Nxd5 {[%emt 0:08:45] A29: English Opening: Four Knights Variation with 4 g3.} 8. cxd5 {[%emt 0:00:01]} Ne7 {[%emt 0:00:14] [#]} 9. Qa4 $146 {[%emt 0:08:43]} ({Predecessor:} 9. a3 Bc5 10. d4 exd4 11. Nxd4 Nf5 12. Nxf5 Bxf5 13. b4 Bb6 14. Bb2 Qg5 15. Rc1 {0-1 Hansen,E (2606)-Ohanyan,E (2379) Titled Tuesday intern op 08th Feb Early blitz 2022 (2)}) 9... Bc5 {[%emt 0:05:15]} (9... Nxd5 $2 10. e4 $18) 10. d4 {[%emt 0:01:38]} exd4 {[%emt 0:00:51]} 11. Nxd4 {[%emt 0:00:26]} Nf5 {[%emt 0:02:04]} 12. Nb3 {[%emt 0:12:21]} Bb6 {[%emt 0:01:50]} 13. Bd2 {[%emt 0:03:05]} Re8 {[%emt 0:03:39]} 14. e4 {[%emt 0:03:53]} Ne7 {[%emt 0:00:21]} (14... Bd7 $5 {[%cal Rd7a4]} 15. Qc4 Ne7 $11) 15. Ba5 {[%emt 0:03:53]} Bd7 {[%emt 0:19:54]} 16. Qc4 {[%emt 0:02:54]} c5 {[%emt 0:03:23]} 17. Bd2 {[%emt 0:16:18]} Ng6 {[%emt 0:06:09]} 18. f4 {[%emt 0:07:21]} a6 {[%emt 0:02:29]} 19. a4 {[%emt 0:00:29] Wards off Bb5} Ba7 {[%emt 0:04:30]} 20. Kh1 {[%emt 0:01:31]} b5 {[%emt 0:01:28]} 21. Qc2 {[%emt 0:00:45][%cal Oe4e5]} c4 {[%emt 0:11:04]} 22. Na5 {[%emt 0:01:08]} Bb6 {[%emt 0:02:54]} 23. axb5 {[%emt 0:04:52]} axb5 {[%emt 0:00:23][%cal Rb6a5]} 24. b4 {[%emt 0:01:38]} cxb3 {[%emt 0:04:16]} 25. Nxb3 {[%emt 0:00:11]} Ra4 {[%emt 0:00:36]} 26. Bc3 {[%emt 0:03:58]} Qc7 {[%emt 0:05:04]} 27. Qb2 {[%emt 0:00:50]} f6 {[%emt 0:00:23]} 28. h4 {[%emt 0:04:04]} (28. Nd4 $14 {is more appropriate.}) 28... Rc4 {[%emt 0:03:13] The position is equal.} 29. Rfc1 {[%emt 0:06:47]} Rc8 {[%emt 0:01:01][%cal Rc4c3]} 30. Bb4 {[%emt 0:01:01]} Be3 {[%emt 0:01:19]} 31. Bd2 {[%emt 0:00:43]} Bxd2 {[%emt 0:03:47]} 32. Qxd2 {[%emt 0:00:11]} Bg4 {[%emt 0:01:47]} 33. Kh2 {Weighted Error Value: White=0.11 (very precise) /Black=0.07 (flawless)} 1/2-1/2

[Event "Polish Youth B18 Championship 2023"]
[Site "Jastrzebia Gora"]
[Date "2023.03.14"]
[Round "4.11"]
[White "Kotowicz, Kamil"]
[Black "Backiel, Hubert"]
[Result "0-1"]
[ECO "A45"]
[WhiteElo "1828"]
[BlackElo "2127"]
[Annotator "TA"]
[PlyCount "146"]
[EventDate "2023.03.11"]
[EventType "swiss"]
[EventCountry "POL"]
[SourceTitle "playchess.com"]
[Source "ChessBase"]
[SourceQuality "1"]
[TimeControl "40/5400+30:1800+30"]

{[%evp 9,146,18,20,0,0,-3,17,-2,-2,6,18,-17,-13,-43,25,26,54,40,78,78,78,78,81,70,97,100,93,75,112,84,130,94,99,87,87,77,108,106,115,93,101,89,86,47,112,25,38,33,32,38,42,30,43,0,0,-6,0,-11,0,-8,0,-13,-11,-11,-12,-21,0,-87,27,-106,-124,-223,-212,-216,-232,-227,-228,-264,-279,-469,-468,-458,-425,-412,-383,-357,-345,-326,-250,-243,-245,-241,-242,-240,-241,-317,-317,-1274,-1270,-1231,-1171,-1027,-410,-1263,-1093,-1120,-1096,-29959,-29957,-29956,-29957,-1749,-1193,-29958,-29962,-29961,-29963,-29964,0,-29962,-29962,-29962,-29963,-29961,0,-29953,-29954,-29957,-29954,-12702,-12251,-29959,-29959,-29954,-29957,-29975,-29976,-29976,-29976]} 1. d4 {[%emt 0:00:14]} Nf6 {[%emt 0:00:05]} 2. g3 {[%emt 0:00:59]} e6 {[%emt 0:00:09]} 3. Bg2 {[%emt 0:00:20]} d5 {[%emt 0:00:07]} 4. Nf3 {[%emt 0:00:35]} b5 {[%emt 0:00:42]} 5. O-O {[%emt 0:03:01]} Be7 {[%emt 0:01:34]} 6. c3 {[%emt 0:00:48] A46: 1 d4 Nf6 2 Nf3 e6: Torre, London and Colle Systems.} O-O {[%emt 0:02:20]} 7. Nbd2 {[%emt 0:04:19][%cal Oe2e4]} Bb7 {[%emt 0:07:29]} 8. Ne5 {[%emt 0:01:24] The position is equal.} Nbd7 {[%emt 0:02:10] [#]} 9. Nxd7 $146 {[%emt 0:01:39]} ({Predecessor:} 9. Nb3 c5 10. Nxc5 Nxc5 11. dxc5 Bxc5 12. Bg5 Be7 13. a4 Qc7 14. Nd3 Bc6 {½-½ Dudukovic,N (2406)-Zajic,M (2485) SRB-ch sf Kragujevac 2019 (2)}) 9... Qxd7 {[%emt 0:00:55]} 10. Qc2 {[%emt 0:08:28]} Rfc8 {[%emt 0:10:26]} 11. Nb3 {[%emt 0:01:47]} Qc6 {[%emt 0:12:02]} (11... a5 $15) 12. Na5 $11 {[%emt 0:05:37]} Qb6 {[%emt 0:00:06]} 13. b4 {[%emt 0:00:38]} Re8 {[%emt 0:08:41]} 14. Bg5 {[%emt 0:02:19]} Rad8 {[%emt 0:13:45]} 15. Bxf6 {[%emt 0:03:08]} Bxf6 {[%emt 0:00:38]} 16. e4 {[%emt 0:02:24][%cal Be2e4,Be4e5][%mdl 32]} Bc8 {[%emt 0:10:05]} 17. e5 {[%emt 0:02:00]} Be7 {[%emt 0:00:04][%cal Oc7c5]} 18. Nb3 {[%emt 0:00:58]} c6 19. f4 {[%emt 0:02:47]} f5 {[%emt 0:04:22]} (19... a5 $142) 20. exf6 {[%emt 0:04:35]} gxf6 {[%emt 0:00:05]} 21. Rae1 {[%emt 0:00:44]} Bd6 {[%emt 0:04:45]} 22. Qd2 {[%emt 0:08:40]} Kg7 {[%emt 0:03:05]} 23. Bh3 {[%emt 0:03:14]} Re7 {[%emt 0:06:48]} 24. Kh1 {[%emt 0:02:54]} Rde8 {[%emt 0:00:38]} 25. Rf2 {[%emt 0:02:53]} Qc7 {[%emt 0:01:43]} 26. Ref1 {[%emt 0:02:10]} h6 {[%emt 0:01:51]} (26... h5 $14) 27. g4 {[%emt 0:03:40]} (27. Bg4 $16) 27... Rh8 {[%emt 0:00:52]} 28. Nc5 {[%emt 0:08:57]} Kf7 {[%emt 0:02:54]} 29. Qd3 {[%emt 0:03:20]} Ree8 {[%emt 0:00:39]} 30. Qf3 {[%emt 0:04:45]} (30. Qe3 {keeps more tension.} a5 31. bxa5 Bxc5 32. dxc5 Qxa5 33. Rg1) 30... Ke7 {[%emt 0:00:49][%cal Bf7e7,Be7d8,Bd8c7][%mdl 32]} 31. Nd3 {[%emt 0:01:06][%cal Oa2a4]} Kd8 {[%emt 0:00:06]} 32. Re2 {[%emt 0:01:03]} Qf7 {[%emt 0:02:42]} 33. Qf2 {[%emt 0:03:11]} Kc7 {[%emt 0:00:51]} 34. Nc5 {[%emt 0:01:05]} Re7 {[%emt 0:00:47]} 35. Rfe1 {[%emt 0:00:37]} Rhe8 {[%emt 0:00:04]} 36. Nd3 {[%emt 0:00:36]} Qg7 {[%emt 0:00:32]} 37. Re3 {[%emt 0:02:11][%cal Oa2a4]} Rh8 {[%emt 0:01:56][%cal Be8h8,Bh8h5,Bh5h4,Bh4f4,Bf4f2][%mdl 32]} 38. f5 {[%emt 0:01:02]} (38. a4 $11 {remains equal.}) 38... h5 {[%emt 0:00:39]} (38... Rhe8 $17) 39. gxh5 {[%emt 0:01:16]} (39. fxe6 $2 hxg4 40. Bg2 Qg5 $19) (39. g5 $1 $11 {was the only way to keep the balance.}) 39... Rxh5 $17 {[%emt 0:00:34] Threatens to win with ...Qh6. Black converts the advantage convincingly.} 40. fxe6 {[%emt 0:00:00]} (40. Nf4 $17 Rh6 41. Nxe6+ (41. fxe6 Qh7 $15) 41... Bxe6 42. fxe6) 40... Qh6 $19 {[%emt 0:00:00]} (40... Bxe6 $2 41. Nf4 (41. Rxe6 $2 Rxe6 42. Rxe6 Rxh3 $19) 41... Bxf4 42. Qxf4+ (42. Rxe6 Rxe6 43. Qxf4+ Rd6 $17) 42... Kb7 43. Bxe6 $18) 41. Qf3 {[%emt 0:13:21] [#]} f5 $1 {[%emt 0:13:56][%mdl 1536] White must now prevent ...f4. Black has strong compensation.} 42. Nf2 {[%emt 0:01:48]} (42. Bxf5 $2 Rxf5 43. Qg2 Rh7 $19) 42... Bf4 {[%emt 0:05:26]} (42... Bxe6 43. Qe2 $17 (43. Rxe6 Rxe6 44. Rxe6 Rxh3 $17)) (42... Rxe6 43. Rxe6 Bxe6 44. Qe3 $17 (44. Rxe6 Rxh3 45. Qxh3 Qxe6 $17)) 43. R3e2 {[%emt 0:02:14]} Rh4 {[%emt 0:00:06][%cal Rc8e6]} (43... Bxe6 44. Rxe6 Rxe6 45. Rxe6 Qxe6 46. Qxh5 $18) 44. Nd3 $2 {[%emt 0:06:25]} (44. Ra1) 44... Bd6 {[%emt 0:00:07]} (44... Rxh3 45. Qxf4+ Qxf4 46. Nxf4 Rxc3 47. h4 $14) (44... Rxe6 45. Rxe6 Bxe6 46. Nxf4 (46. Rxe6 Qxe6 47. Nxf4 Qe4 $15) 46... Rxf4 47. Rxe6 Rxf3 48. Rxh6 $18) 45. Nf2 {[%emt 0:00:23]} Rf4 {[%emt 0:03:41]} 46. Qd3 {[%emt 0:02:03]} Rxe6 {[%emt 0:01:58]} (46... Bxe6 $2 47. Qd2 Qh4 48. Nd3 $19) 47. Rxe6 {[%emt 0:02:57]} Bxe6 {[%emt 0:00:01]} 48. Qe3 {[%emt 0:00:46]} Qh4 {[%emt 0:02:08]} 49. Qg3 {[%emt 0:03:10]} Qxg3 {[%emt 0:02:03]} 50. hxg3 {[%emt 0:00:03]} Rxf2 {[%emt 0:00:07]} 51. Rxe6 {[%emt 0:00:04][%mdl 4096] Endgame KRB-KRB} Rf3 {[%emt 0:00:11] Repels Re3} (51... Bxg3 $2 52. Re3 f4 53. Re7+ Kd8 54. Rd7+ Ke8 55. Kg1 Rxa2 56. Rg7) ({Worse is} 51... Rxa2 52. Bxf5 Ra3 53. Rh6) 52. Rg6 {[%emt 0:01:32]} Rxg3 {[%emt 0:01:48]} (52... Rxc3 $2 {perishes.} 53. Bxf5 Bxb4 54. Rg7+ Kb6 55. Bc8 $19) 53. Bxf5 {[%emt 0:00:06]} (53. Rxg3 Bxg3 54. Kg2) 53... Rxg6 {[%emt 0:00:05]} (53... Rxc3 $2 {is the wrong capture.} 54. Rg7+ Kb6 55. Rg6 Bxb4 56. Be6 $19) 54. Bxg6 {[%emt 0:00:10] KB-KB} Bf4 {[%emt 0:00:09]} 55. Kg2 {[%emt 0:00:32]} Bd2 {[%emt 0:00:04]} 56. Kf3 {[%emt 0:00:27]} (56. c4 $142 bxc4 57. Bf5) 56... Bxc3 {[%emt 0:00:06]} 57. Ke3 {[%emt 0:00:55]} Bxb4 {[%emt 0:00:19] Hoping for ...Ba3.} 58. Be8 {[%emt 0:01:18]} Ba3 {[%emt 0:00:42]} 59. Kd3 {[%emt 0:01:38]} Bb2 {[%emt 0:01:59]} 60. Bh5 {[%emt 0:00:14]} Kb6 {[%emt 0:01:12] ( -> ...a5)} 61. Be8 {[%emt 0:00:17]} a5 {[%emt 0:01:02][%cal Ba7a5,Ba5a4][%mdl 32]} 62. Bh5 {[%emt 0:02:58]} Ba1 {[%emt 0:00:12]} 63. Bg4 {[%emt 0:00:27]} Bb2 {[%emt 0:00:06]} 64. Bh5 $1 {[%emt 0:00:03]} a4 {[%emt 0:00:27]} 65. Bd1 {[%emt 0:01:03]} Ba1 {[%emt 0:00:19]} 66. Bc2 {[%emt 0:00:18]} Bb2 {[%emt 0:00:04]} 67. Bd1 $1 {[%emt 0:00:01]} Ka5 {[%emt 0:00:07]} 68. Bg4 {[%emt 0:00:55]} b4 {[%emt 0:00:24]} 69. Bd7 {[%emt 0:00:27]} Kb5 {[%emt 0:00:08]} 70. Bg4 {[%emt 0:00:06]} b3 {[%emt 0:03:37] Black mates.} 71. axb3 {[%emt 0:00:50] [#]} a3 $1 {[%emt 0:00:06]} 72. Be2 {[%emt 0:00:04]} Kb4 {[%emt 0:00:05]} 73. Kc2 {[%emt 0:00:09]} Bxd4 {[%emt 0:00:21] Weighted Error Value: White=0.52/Black=0.20 (precise)} 0-1